Workbook

Sheet Таблица 1
C3: Подготовлено редакцией АПС «Бизнес-Инфо» (ООО «Профессиональные правовые системы»)
F4: Таблица 1
C5: Исходные данные для проведения анализа прибыли УП «Аристо»
E6: (млн.руб.)
C7: Наименование показателя | D7: Источник данных (формы бухгалтерской отчетности, утвержденные постановлением Минфина РБ от 31.10.2011 № 111 (в редакции от 30.04.2012 № 25)) | E7: Прошлый год | F7: Отчетный год
C8: Выручка от реализации | D8: Строка 010 ОПУ | E8: 404 | F8: 458
C9: Себестоимость реализованной продукции, товаров, работ, услуг (покупная стоимость товаров) | D9: Строка 020 ОПУ | E9: 273 | F9: 309
C10: Валовая прибыль | D10: форма № 2 строка 040 или расчет: форма № 2 строка 010 - форма № 2 строка 030 - форма № 2 строка 011 | E10: 131 | F10: 149
C11: Расходы на реализацию и управленческие расходы (далее - расходы на реализацию) | D11: Строка 040 + строка 050 ОПУ | E11: 127 | F11: 130
C12: Прибыль (убыток) от реализации | D12: Строка 060 ОПУ или (строка 030 - строка 040 - строка 050) | E12: ='Таблица 7'!D9 -> 4 | F12: ='Таблица 7'!F9 -> 19
C13: Среднесписочная численность, чел. | D13: Форма статистической отчетности 1-труд | E13: 42 | F13: 43
C14: Производительность труда | D14: Выручка от реализации / среднесписочная численность | E14: =E8/E13 -> 9.62 | F14: =F8/F13 -> 10.65
C15: Средняя стоимость основных средств | D15: (строка 110 ББ на начало периода + строка 110 ББ на конец периода) / 2 | E15: 8.50 | F15: 8.53
C16: Фондоотдача основных средств, руб. | D16: Выручка от реализации / средняя стоимость основных средств | E16: =E8/E15 -> 47.53 | F16: =F8/F15 -> 53.69
C17: Средняя стоимость товарных запасов | D17: (строка 214 ББ на начало периода + строка 214 ББ на конец периода) / 2 | E17: 17.50 | F17: 24.50
C18: Коэффициент оборачиваемости товарных запасов (товарооборачиваемость в днях) | D18: Выручка от реализации / средняя стоимость товарных запасов | E18: =E8/E17 -> 23.09 | F18: =F8/F17 -> 18.69
C19: Сумма условно-постоянных расходов на реализацию товаров | D19: Ведомость аналитического учета по счету 44 | E19: 102.80 | F19: 105.20
C20: Уровень условно-переменных расходов на реализацию товаров | D20: Сумма условно-переменных расходов (расходы на реализацию - сумма условно-постоянных расходов на реализацию товаров) / выручка от реализации х 100 | E20: 5.94 | F20: 5.41

Sheet Таблица 2
J3: Таблица 2
C4: Информация о динамике и выполнении плана валовой прибыли УП «Аристо» за прошлый и отчетный годы
I5: (млн.руб.)
C6: Показатели | D6: Прошлый год | E6: Отчетный год | H6: Отклонение | J6: Темп изменения, %
E7: план | F7: факт | G7: % выполне-ния плана | H7: от плана | I7: от прошлого года
C8: Выручка от реализации | D8: ='Таблица 1'!E8 -> 404 | E8: 427 | F8: ='Таблица 1'!F8 -> 458 | G8: =F8/E8*100 -> 107.26 | H8: =F8-E8 -> 31 | I8: =F8-D8 -> 54 | J8: =F8/D8*100 -> 113.37
C9: Себестоимость реализованной продукции, товаров, работ, услуг (покупная стоимость товаров) | D9: ='Таблица 1'!E9 -> 273 | E9: 290 | F9: ='Таблица 1'!F9 -> 309 | G9: =F9/E9*100 -> 106.55 | H9: =F9-E9 -> 19 | I9: =F9-D9 -> 36 | J9: =F9/D9*100 -> 113.19
C10: В % к выручке от реализации | D10: =D9/D8*100 -> 68 | E10: =E9/E8*100 -> 67.92 | F10: =F9/F8*100 -> 67 | G10: =F10/E10*100 -> 99.34 | H10: =F10-E10 -> -0.45 | I10: =F10-D10 -> -0.11 | J10: =F10/D10*100 -> 99.84
C11: Валовая прибыль | D11: ='Таблица 1'!E10 -> 131 | E11: 137 | F11: ='Таблица 1'!F10 -> 149 | G11: =F11/E11*100 -> 108.76 | H11: =F11-E11 -> 12 | I11: =F11-D11 -> 18 | J11: =F11/D11*100 -> 113.74
C12: Уровень валовой прибыли, % | D12: =D11/D8*100 -> 32.43 | E12: =E11/E8*100 -> 32.08 | F12: =F11/F8*100 -> 32.53 | G12: =F12/E12*100 -> 101.40 | H12: =F12-E12 -> 0.45 | I12: =F12-D12 -> 0.11 | J12: =F12/D12*100 -> 100.33

Sheet Таблица 3
G3: Таблица 3
C4: Методика расчета влияния выручки от реализации товаров и уровня валовой прибыли на изменение суммы валовой прибыли
C6: Показатели | D6: Прошлый год | E6: Отчетный год | F6: Отклонение (гр.3 - гр.2) | G6: Расчет влияния факторов
C7: 1 | D7: 2 | E7: 3 | F7: 4 | G7: 5
C8: 1. Выручка от реализации товаров | D8: Во | E8: В1 | F8: DВ | G8: DВ х УВП0 / 100
C9: 2. Уровень валовой прибыли | D9: УВП0 | E9: УВП1 | F9: DУВП | G9: DУВП х В1 / 100
C10: 3. Сумма валовой прибыли | D10: ВП0 | E10: ВП1 | F10: DВП | G10: DВП

Sheet Таблица 4
G3: Таблица 4
C4: Алгоритм расчета влияния выручки от реализации и уровня валовой прибыли на сумму валовой прибыли УП «Аристо»
G5: (млн.руб.)
C6: Факторы | D6: Влияние на выполнение плана по валовой прибыли | F6: Влияние на динамику валовой прибыли
D7: расчет | E7: сумма | F7: расчет | G7: сумма
C8: Изменение объема выручки в действующих ценах | D8: =CONCATENATE('Таблица 2'!H8," * ",'Таблица 2'!E12," / ",100) -> 31 * 32,0843091334895 / 100 | E8: =ВЫЧИСЛИТЬ.е8 -> 9.95 | F8: =CONCATENATE('Таблица 2'!I8," * ",'Таблица 2'!D12," / ",100) -> 54 * 32,4257425742574 / 100 | G8: =ВЫЧИСЛИТЬg8 -> 17.51
C9: Изменение среднего уровня валовой прибыли | D9: =CONCATENATE('Таблица 2'!$F$8," * ",'Таблица 2'!$H$12," / ",100) -> 458 * 0,448441958213593 / 100 | E9: =ВЫЧИСЛИТЬ.е9 -> 2.05 | F9: =CONCATENATE('Таблица 2'!$F$8," * ",'Таблица 2'!$I$12," / ",100) -> 458 * 0,107008517445628 / 100 | G9: =ВЫЧИСЛИТЬ.G9 -> 0.49
C10: Всего | D10: - | E10: =SUM(E8:E9) -> 12.00 | F10: - | G10: =SUM(G8:G9) -> 18.00

Sheet Таблица 5
G3: Таблица 5
C4: Методика факторного анализа суммы валовой прибыли
C6: Показатели | D6: Прош-лый год | E6: Отчет-ный год | F6: Отклоне-ние (гр.3 - гр.2) | G6: Расчет влияния факторов
C7: 1 | D7: 2 | E7: 3 | F7: 4 | G7: 5
C8: 1. Обеспеченность трудовыми ресурсами и эффективность их использования
C9: 1.1. Среднесписочная численность работников | D9: Ч0 | E9: Ч1 | F9: DЧ | G9: DЧ х ПТ0 х УВП0 / 100
C10: 1.2. Производительность труда | D10: ПТ0 | E10: ПТ1 | F10: DПТ | G10: DПТ х Ч1 х УВП0 / 100
C11: 2. Обеспеченность основными средствами и эффективность их использования
C12: 2.1. Средняя стоимость основных средств | D12: ОС0 | E12: ОС1 | F12: DОС | G12: DОС х ФО0 х УВП0 / 100
C13: 2.2. Фондоотдача основных средств | D13: ФО0 | E13: ФО1 | F13: DФО | G13: DФО х ОС1 х УВП0 / 100
C14: 3. Обеспеченность товарными запасами и эффективность их использования
C15: 3.1. Средняя стоимость товарных запасов | D15: З0 | E15: З1 | F15: DЗ | G15: DЗ х коб0 х УВП0 / 100
C16: 3.2. Коэффициент оборачиваемости товарных запасов | D16: коб0 | E16: коб1 | F16: Dкоб | G16: Dкоб х З1 х УВП0 / 100

Sheet Таблица 6
H3: Таблица 6
C4: Алгоритм расчета влияния факторов второго порядка на сумму валовой прибыли УП «Аристо»
H5: (млн.руб.)
C6: Показатели | D6: Прош-лый год | E6: Отчет-ный год | F6: Откло-нение | G6: Влияние факторов
G7: расчет | H7: сумма
C8: 1. Обеспеченность трудовыми ресурсами и эффективность их использования
C9: 1.1. Среднесписочная численность работников | D9: ='Таблица 1'!E13 -> 42 | E9: ='Таблица 1'!F13 -> 43 | F9: =E9-D9 -> 1 | G9: =CONCATENATE(F9," * ",D10," * ",'Таблица 2'!D12," / ",100) -> 1 * 9,61904761904762 * 32,4257425742574 / 100 | H9: =вычислить.G69 -> 3.12
C10: 1.2. Производительность труда | D10: ='Таблица 2'!D8/'Таблица 6'!D9 -> 9.62 | E10: ='Таблица 2'!F8/'Таблица 6'!E9 -> 10.65 | F10: =E10-D10 -> 1.03 | G10: =CONCATENATE(F10," * ",E9," * ",'Таблица 2'!D12," / ",100) -> 1,03211517165006 * 43 * 32,4257425742574 / 100 | H10: =вычислить.h10 -> 14.39
C11: Итого | H11: =SUM(H9:H10) -> 17.51
C12: 2. Обеспеченность основными средствами и эффективность их использования
C13: 2.1. Среднегодовая стоимость основных средств | D13: ='Таблица 1'!E15 -> 8.50 | E13: ='Таблица 1'!F15 -> 8.53 | F13: =E13-D13 -> 0.03 | G13: =CONCATENATE(F13," * ",D14," * ",'Таблица 2'!D12," / ",100) -> 0,0299999999999994 * 47,5294117647059 * 32,4257425742574 / 100 | H13: =вычислить.h13 -> 0.46
C14: 2.2. Фондоотдача основных средств | D14: ='Таблица 2'!D8/'Таблица 6'!D13 -> 47.53 | E14: ='Таблица 2'!F8/'Таблица 6'!E13 -> 53.69 | F14: =E14-D14 -> 6.16 | G14: =CONCATENATE(F14," * ",E13," * ",'Таблица 2'!D12," / ",100) -> 6,16343700434453 * 8,53 * 32,4257425742574 / 100 | H14: =вычислить.H14 -> 17.05
C15: Итого | H15: =SUM(H13:H14) -> 17.51
C16: 3. Обеспеченность товарными запасами и эффективность их использования
C17: 3.1. Среднегодовая стоимость товарных запасов | D17: ='Таблица 1'!E17 -> 17.50 | E17: ='Таблица 1'!F17 -> 24.50 | F17: =E17-D17 -> 7.00 | G17: =CONCATENATE(F17," * ",D18," * ",'Таблица 2'!D12," / ",100) -> 7 * 23,0857142857143 * 32,4257425742574 / 100 | H17: =вычислить.h17 -> 52.40
C18: 3.2. Товарообора-чиваемость, дни | D18: ='Таблица 2'!D8/'Таблица 6'!D17 -> 23.09 | E18: ='Таблица 2'!F8/'Таблица 6'!E17 -> 18.69 | F18: =E18-D18 -> -4.39 | G18: =CONCATENATE(F18," * ",E17," * ",'Таблица 2'!D12," / ",100) -> -4,39183673469388 * 24,5 * 32,4257425742574 / 100 | H18: =вычислить.h18 -> -34.89
C19: Итого | H19: =SUM(H17:H18) -> 17.51

Sheet Таблица 7
I3: Таблица 7
C4: Информация о составе и структуре прибыли УП «Аристо» за прошлый и отчетный годы
I5: (млн.руб.)
C6: Показатели | D6: Прошлый год | F6: Отчетный год | H6: Отклонение | J6: Темп измене-ния, %
D7: сумма | E7: удель-ный вес, % | F7: сумма | G7: удель-ный вес, % | H7: сумма (гр.4 - гр.2) | I7: удель-ный вес, % (гр5 - гр.3)
C8: 1 | D8: 2 | E8: 3 | F8: 4 | G8: 5 | H8: 6 | I8: 7 | J8: 8
C9: Прибыль от реализации товаров, продукции | D9: ='Таблица 12'!D12 -> 4 | E9: =D9/$D$15*100 -> 58.35 | F9: ='Таблица 12'!E12 -> 19 | G9: =F9/$F$15*100 -> 76.02 | H9: =F9-D9 -> 15 | I9: =G9-E9 -> 17.67 | J9: =IF(D9=0,0,F9/D9*100) -> 452.65
C10: Прочие доходы (расходы) по текущей деятельности | D10: 0 | E10: 0.00 | F10: 0 | G10: 0.00 | H10: =F10-D10 -> 0 | I10: =G10-E10 -> 0.00 | J10: =IF(D10=0,0,F10/D10*100) -> 0.00
C11: Прибыль от текущей деятельности | D11: =D9+D10 -> 4 | E11: 58.35 | F11: =F9+F10 -> 19 | G11: 76.02 | H11: 15 | I11: 17.67 | J11: 452.65
C12: Доходы (расходы) по инвестиционной деятельности | D12: 3 | E12: 41.65 | F12: 6 | G12: 23.98 | H12: 3 | I12: -17.67 | J12: 200.00
C13: Доходы (расходы) по финансовой деятельности | D13: 0 | E13: 0.00 | F13: 0 | G13: 0.00 | H13: 0 | I13: 0.00 | J13: 0.00
C14: Иные доходы и расходы | D14: 0 | E14: 0.00 | F14: 0 | G14: 0.00 | H14: 0 | I14: 0.00 | J14: 0.00
C15: Прибыль | D15: =D11+D12+D13+D14 -> 7 | E15: =SUM(E9:E14) -> 158.35 | F15: =F11+F12+F13+F14 -> 25 | G15: =SUM(G9:G14) -> 176.02 | H15: 18 | I15: 17.67 | J15: 347.41

Sheet Таблица 8
J3: Таблица 8
C4: Информация о динамике и выполнении плана прибыли от реализации УП «Аристо» за прошлый и отчетный годы
I5: (млн.руб.)
C6: Показатели | D6: Прош-лый год | E6: Отчетный год | H6: Отклонение | J6: Темп измене-ния, %
E7: план | F7: факт | G7: % выпол-нения плана | H7: от плана | I7: от прошло-го года
C8: Выручка от реализации | D8: ='Таблица 2'!D8 -> 404 | E8: ='Таблица 2'!E8 -> 427 | F8: ='Таблица 2'!F8 -> 458 | G8: =F8/E8*100 -> 107.26 | H8: =F8-E8 -> 31 | I8: =F8-D8 -> 54 | J8: =F8/D8*100 -> 113.37
C9: Расходы на реализацию | D9: ='Таблица 1'!E11 -> 127 | E9: 125 | F9: ='Таблица 1'!F11 -> 130 | G9: =F9/E9*100 -> 104.00 | H9: =F9-E9 -> 5 | I9: =F9-D9 -> 3 | J9: =F9/D9*100 -> 102.36
C10: В % к выручке | D10: =D9/D8*100 -> 31.44 | E10: =E9/E8*100 -> 29.27 | F10: =F9/F8*100 -> 28.38 | G10: =F10/E10*100 -> 96.96 | H10: =F10-E10 -> -0.89 | I10: =F10-D10 -> -3.05 | J10: =F10/D10*100 -> 90.29
C11: Прибыль от реализации | D11: ='Таблица 7'!D9 -> 4 | E11: 12 | F11: ='Таблица 7'!F9 -> 19 | G11: =F11/E11*100 -> 158.52 | H11: =F11-E11 -> 7 | I11: =F11-D11 -> 15 | J11: =F11/D11*100 -> 452.65
C12: В % к выручке | D12: =D11/D8*100 -> 1.04 | E12: =E11/E8*100 -> 2.81 | F12: =F11/F8*100 -> 4.15 | G12: =F12/E12*100 -> 147.79 | H12: =F12-E12 -> 1.34 | I12: =F12-D12 -> 3.11 | J12: =F12/D12*100 -> 399.28

Sheet Таблица 9
I3: Таблица 9
C4: Информация о динамике источников формирования прибыли от реализации товаров и продукции УП «Аристо» за прошлый и отчетный годы
I5: (млн.руб.)
C6: Показатели | D6: Прошлый год | F6: Отчетный год | H6: Отклонение | J6: Темп измене-ния, %
D7: сумма | E7: удель-ный вес, % | F7: сумма | G7: удель-ный вес, % | H7: сумма (гр.4 - гр.2) | I7: удель-ный вес, % (гр.5 - гр.3)
C8: 1 | D8: 2 | E8: 3 | F8: 4 | G8: 5 | H8: 6 | I8: 7 | J8: 8
C9: 1. Выручка от реализации | D9: ='Таблица 2'!D8 -> 404 | E9: =D9/$D$9*100 -> 100.00 | F9: ='Таблица 2'!F8 -> 458 | G9: =F9/$F$9*100 -> 100.00 | H9: =F9-D9 -> 54 | I9: 0.00 | J9: =F9/D9*100 -> 113.37
C10: 2. Полная себестоимость, в т.ч. | D10: =SUM(D11:D12) -> 400 | E10: 99.01 | F10: =SUM(F11:F12) -> 439 | G10: 95.85 | H10: 39 | I10: -3.16 | J10: 109.75
C11: 2.1. Покупная стоимость реализованных товаров и сырья | D11: ='Таблица 1'!E9 -> 273 | E11: 67.57 | F11: ='Таблица 1'!F9 -> 309 | G11: 67.47 | H11: 36 | I11: -0.11 | J11: 113.19
C12: 2.2. Расходы на реализацию товаров | D12: ='Таблица 1'!E11 -> 127 | E12: 31.44 | F12: ='Таблица 1'!F11 -> 130 | G12: 28.38 | H12: 3 | I12: -3.05 | J12: 102.36
C13: 3. Валовая прибыль | D13: ='Таблица 2'!D11 -> 131 | E13: 32.43 | F13: ='Таблица 2'!F11 -> 149 | G13: 32.53 | H13: 18 | I13: 0.11 | J13: 113.74
C14: 4. Прибыль от реализации продукции и товаров | D14: ='Таблица 7'!D9 -> 4 | E14: 1.04 | F14: ='Таблица 7'!F9 -> 19 | G14: 4.15 | H14: 15 | I14: 3.11 | J14: 452.65

Sheet Таблица 10
G3: Таблица 10
C4: Алгоритм расчета влияния факторов на выполнение плана и динамику прибыли от реализации товаров и продукции УП «Аристо» за прошлый и отчетный годы
G5: (млн.руб.)
C6: Наименование факторов | D6: Влияние на выполнение плана прибыли от реализации | F6: Влияние на динамику прибыли от реализации
D7: расчет | E7: сумма | F7: расчет | G7: сумма
C8: Изменение общего объема выручки в действующих ценах | D8: =CONCATENATE('Таблица 8'!H8," * ",'Таблица 8'!E12," / ",100) -> 31 * 2,81030444964871 / 100 | E8: =вычислить.Е9.10 -> 0.87 | F8: =CONCATENATE('Таблица 8'!I8," * ",'Таблица 8'!D12," / ",100) -> 54 * 1,04019801980198 / 100 | G8: =вычислить.G9.10 -> 0.56
C9: Изменение уровня валовой прибыли | D9: =CONCATENATE('Таблица 2'!$F$8," * ",'Таблица 2'!$H$12," / ",100) -> 458 * 0,448441958213593 / 100 | E9: =вычислить.Е10.10 -> 2.05 | F9: =CONCATENATE('Таблица 2'!$F$8," * ",'Таблица 2'!$I$12," / ",100) -> 458 * 0,107008517445628 / 100 | G9: =вычислить.G10.10 -> 0.49
C10: Изменение уровня расходов на реализацию | D10: =CONCATENATE('Таблица 8'!H10," * ",'Таблица 8'!F8," / ",100) -> -0,889725207858216 * 458 / 100 | E10: =-вычислить.Е10.11 -> 4.07 | F10: =CONCATENATE('Таблица 8'!I10," * ",'Таблица 8'!F8," / ",100) -> -3,05136408837391 * 458 / 100 | G10: =-вычислить.G10.11 -> 13.98
C11: Всего | D11: - | E11: =SUM(E8:E10) -> 7.00 | F11: - | G11: =SUM(G8:G10) -> 15.03

Sheet Таблица 11
I3: Таблица 11
C4: Методика расчета влияния выручки от реализации товаров и уровня валовой прибыли на изменение прибыли от реализации в торговле
C6: Показатели | D6: Прошлый год | E6: Отчет-ный год | F6: Подстановки | I6: Расчет влияния факторов
F7: I | G7: II | H7: III
C8: 1. Выручка от реализации товаров | D8: В0 | E8: В1 | F8: В1 | G8: В1 | H8: В1 | I8: ПрI - Пр0
C9: 2. Сумма условно-постоянных расходов на реализацию товаров | D9: РП0 | E9: РП1 | F9: РП0 | G9: РП1 | H9: РП1 | I9: ПрII - ПрI
C10: 3. Уровень условно-переменных расходов на реализацию товаров | D10: Упер0 | E10: Упер1 | F10: Упер0 | G10: Упер0 | H10: Упер1 | I10: ПрIII - ПрII
C11: 4. Уровень валовой прибыли | D11: УВП0 | E11: УВП1 | F11: УВП0 | G11: УВП0 | H11: УВП0 | I11: Пр1 - ПрIII
C12: 5. Прибыль от реализации товаров | D12: Пр0 | E12: Пр1 | F12: ПрI | G12: ПрII | H12: ПрIII | I12: DПр

Sheet Таблица 12
I3: Таблица 12
C4: Алгоритм расчета влияния факторов на динамику прибыли от реализации товаров и продукции УП «Аристо» по методике Толкачевой Е.Г. за прошлый и отчетный годы
I5: (млн.руб.)
C6: Показатели | D6: Прош-лый год | E6: Отчет- ный год | F6: Подстановки | I6: Влияние на динамику прибыли от реализации
F7: I | G7: II | H7: III | I7: расчет | J7: сумма
C8: Выручка от реализации товаров и продукции | D8: ='Таблица 2'!D8 -> 404.00 | E8: ='Таблица 2'!F8 -> 458.00 | F8: =E8 -> 458 | G8: =E8 -> 458 | H8: =E8 -> 458 | I8: =CONCATENATE(H12," - ",D12) -> 18,532100990099 - 4,2024 | J8: =вычислить.J12.9 -> 14.33
C9: Сумма условно-постоянных расходов на реализацию | D9: ='Таблица 1'!E19 -> 102.80 | E9: ='Таблица 1'!F19 -> 105.20 | F9: =D9 -> 102.80 | G9: =E9 -> 105.20 | H9: =E9 -> 105.20 | I9: =CONCATENATE(G12," - ",F12) -> 16,104700990099 - 18,504700990099 | J9: =вычислить.J12.10 -> -2.40
C10: Уровень условно-переменных расходов на реализацию, % | D10: ='Таблица 1'!E20 -> 5.94 | E10: ='Таблица 1'!F20 -> 5.41 | F10: =D10 -> 5.94 | G10: =D10 -> 5.94 | H10: =E10 -> 5.41 | I10: =CONCATENATE(H12," - ",G12) -> 18,532100990099 - 16,104700990099 | J10: =вычислить.J12.11 -> 2.43
C11: Уровень валовой прибыли, % | D11: ='Таблица 2'!D12 -> 32.43 | E11: ='Таблица 2'!F12 -> 32.53 | F11: =D11 -> 32.43 | G11: =D11 -> 32.43 | H11: =D11 -> 32.43 | I11: =CONCATENATE(E12,"-",F12) -> 19,0222-18,504700990099 | J11: =вычислить.J12.12 -> 0.52
C12: Прибыль от реализации товаров и продукции | D12: =D8*(D11-D10)/100-D9 -> 4.20 | E12: =E8*(E11-E10)/100-E9 -> 19.02 | F12: =F8*(F11-F10)/100-F9 -> 18.50 | G12: =G8*(G11-G10)/100-G9 -> 16.10 | H12: =H8*(H11-H10)/100-H9 -> 18.53 | I12: =CONCATENATE(E12,"-",D12) -> 19,0222-4,2024 | J12: =вычислить.J12.13 -> 14.82

Sheet Таблица 13
F3: Таблица 13
C4: Информация о динамике рентабельности УП «Аристо» за прошлый и отчетный годы
C6: Показатели | D6: Прош- лый год | E6: Отчет- ный год | F6: Откло-нение | G6: Темп измене- ния, %
C7: Прибыль, млн.руб. | D7: ='Таблица 7'!D15 -> 7 | E7: ='Таблица 7'!F15 -> 25 | F7: =E7-D7 -> 18 | G7: =E7/D7*100 -> 347.41
C8: Объем реализации товаров, продукции в действующих ценах, млн.руб. | D8: ='Таблица 2'!D8 -> 404 | E8: ='Таблица 2'!F8 -> 458 | F8: 54 | G8: 113.37
C9: Рентабельность общая, % | D9: =D7/D8*100 -> 1.78 | E9: =E7/E8*100 -> 5.46 | F9: 3.68 | G9: 306.45
C10: Расходы на реализацию, млн.руб. | D10: ='Таблица 9'!D12 -> 127 | E10: ='Таблица 9'!F12 -> 130 | F10: 3 | G10: 102.36
C11: Рентабельность текущих затрат, % | D11: =D7/D10*100 -> 5.67 | E11: =E7/E10*100 -> 19.25 | F11: 13.58 | G11: 339.40
C12: Среднегодовая стоимость активов (совокупного капитала), млн.руб. | D12: 91.50 | E12: 109.50 | F12: 18.00 | G12: 119.67
C13: Рентабельность активов (совокупного капитала), % | D13: =D7/D12*100 -> 7.87 | E13: =E7/E12*100 -> 22.85 | F13: 14.98 | G13: 290.31
C14: Среднегодовая стоимость внеоборотных активов, млн.руб. | D14: 8.50 | E14: 8.50 | F14: 0.00 | G14: 100.00
C15: Рентабельность внеоборотных активов, % | D15: =D7/D14*100 -> 84.73 | E15: =E7/E14*100 -> 294.38 | F15: 209.64 | G15: 347.41
C16: Среднегодовая стоимость оборотных активов, млн.руб. | D16: 83 | E16: 101 | F16: 18 | G16: 121.69
C17: Рентабельность оборотных активов, % | D17: =D7/D16*100 -> 8.68 | E17: =E7/E16*100 -> 24.77 | F17: 16.10 | G17: 285.50
C18: Собственный капитал, млн.руб. | D18: -56.50 | E18: -29.50 | F18: 27.00 | G18: 52.21
C19: Рентабельность собственного капитала, % | D19: =D18/D7*100 -> -784.46 | E19: =E18/E7*100 -> -117.90 | F19: 666.57 | G19: 15.03
C20: Средства на оплату труда, млн.руб. | D20: 137 | E20: 142 | F20: 5 | G20: 103.65
C21: Рентабельность средств на оплату труда, % | D21: =D7/D20*100 -> 5.26 | E21: =E7/E20*100 -> 17.62 | F21: 12.36 | G21: 335.18
C22: Среднесписочная численность, чел. | D22: ='Таблица 6'!D9 -> 42 | E22: ='Таблица 6'!E9 -> 43 | F22: 1 | G22: 102.38
C23: Прибыль на 1 сотрудника, млн.руб. | D23: =D7/D22 -> 0.17 | E23: =E7/E22 -> 0.58 | F23: 0.41 | G23: 339.34

Sheet Таблица 14
F3: Таблица 14
C4: Информация о динамике рентабельности УП «Аристо» за прошлый и отчетный годы
G5: (млн.руб.)
C6: Показатели | D6: Прош- лый год | E6: Отчет- ный год | F6: Откло-нение (гр.3 - гр.2) | G6: Темп измене- ния, %
C7: 1 | D7: 2 | E7: 3 | F7: 4 | G7: 5
C8: 1. Выручка от реализации | D8: ='Таблица 2'!D8 -> 404 | E8: ='Таблица 2'!F8 -> 458 | F8: =E8-D8 -> 54 | G8: =E8/D8*100 -> 113.37
C9: 2. Полная себестоимость, в т.ч. | D9: ='Таблица 9'!D10 -> 400 | E9: ='Таблица 9'!F10 -> 439 | F9: =E9-D9 -> 39 | G9: =E9/D9*100 -> 109.75
C10: 2.1. Расходы на реализацию товаров | D10: ='Таблица 9'!D12 -> 127 | E10: ='Таблица 9'!F12 -> 130 | F10: =E10-D10 -> 3 | G10: =E10/D10*100 -> 102.36
C11: 3. Прибыль от реализации | D11: ='Таблица 12'!D12 -> 4 | E11: ='Таблица 12'!E12 -> 19 | F11: =E11-D11 -> 15 | G11: =E11/D11*100 -> 452.65
C12: 4. Показатели рентабельности, %
C13: 4.1. Рентабельность продаж (стр.3 / стр.1 х 100) | D13: =D11/D8*100 -> 1.04 | E13: =E11/E8*100 -> 4.15 | F13: =E13-D13 -> 3.11 | G13: =E13/D13*100 -> 399.28
C14: 4.2 Рентабельность совокупных расходов (стр.3 / стр.2 х 100) | D14: =D11/D9*100 -> 1.05 | E14: =E11/E9*100 -> 4.33 | F14: =E14-D14 -> 3.28 | G14: =E14/D14*100 -> 412.44
C15: 4.3. Рентабельность текущих затрат (или расходов на реализацию) (стр.3 / стр.2.1 х 100) | D15: =D11/D10*100 -> 3.31 | E15: =E11/E10*100 -> 14.63 | F15: =E15-D15 -> 11.32 | G15: =E15/D15*100 -> 442.21

Sheet Таблица 15
F3: Таблица 15
C4: Методика расчета влияния выручки от реализации товаров, уровня валовой прибыли и условно-переменных расходов, суммы условно-постоянных расходов на изменение рентабельности продаж
C6: Показатели | D6: Прошлый год | E6: Отчетный год | F6: Расчет влияния факторов
C7: 1. Выручка от реализации товаров | D7: В0 | E7: В1 | F7: ΔРПР(В) = (В1 х (УВП0 - Упер0) / 100 - Рn0) х 100 / В1 - (В0 х (УВП0 - Упер0) / 100 - Рn0) х 100 / В0
C8: 2. Уровень валовой прибыли | D8: УВП0 | E8: УВП1 | F8: ΔРПР(УВП) = (В1 х (УВП1 - Упер0) / 100 - Рn0) х 100 / В1 - (В1 х (УВП0 - Упер0) / 100 - Рn0) х 100 / В1
C9: 3. Уровень условно-переменных расходов на реализацию товаров | D9: Упер0 | E9: Упер1 | F9: ΔРПР(Упер) = (В1 х (УВП1 - Упер1) / 100 - Рn0) х 100 / В1 - (В1 х (УВП1 - Упер0) / 100 - Рn0) х 100 / В1
C10: 4. Сумма условно-постоянных расходов на реализацию товаров | D10: Рп0 | E10: Рп1 | F10: ΔРПР(Рn) = (В1 х (УВП1 - Упер1) / 100 - Рn1) х 100 / В1 - (В1 х (УВП1 - Упер1) / 100 - Рn0) х 100 / В1
C11: 5. Рентабельность продаж, % | D11: РПР0 | E11: РПР1 | F11: ΔРПР = ΔРПР(В) + ΔРПР(УВП) - ΔРПР(Упер) - ΔРПР(Рn)

Sheet Таблица 16
F3: Таблица 16
C4: Методика расчета влияния выручки от реализации товаров, уровня валовой прибыли и условно-переменных расходов, суммы условно-постоянных расходов на изменение рентабельности продаж УП «Аристо» за прошлый и отчетный годы
C6: Показатели | D6: Прош-лый год | E6: Отчет- ный год | F6: Влияние факторов на рентабельность продаж
F7: расчет (ΔРПР(В)) | G7: итог
C8: 1. Выручка от реализации товаров (В), млн.руб. | D8: ='Таблица 2'!D8 -> 404 | E8: ='Таблица 2'!F8 -> 458 | F8: =CONCATENATE("(",$E$8," * ","(",$D$9," - ",$D$10,")"," / ",100," - ",$D$11,")"," / ",$E$8," * ",100," - ","(",$D$8," * ","(",$D$9," - ",$D$10,")"," / ",100," - ",$D$11,")"," / ",$D$8," * ",100) -> (458 * (32,4257425742574 - 5,94) / 100 - 102,8) / 458 * 100 - (404 * (32,4257425742574 - 5,94) / 100 - 102,8) / 404 * 100 | G8: =вычислить.g16.8 -> 3.00
C9: 2. Уровень валовой прибыли (УВП), % | D9: ='Таблица 2'!D12 -> 32.43 | E9: ='Таблица 2'!F12 -> 32.53 | F9: =CONCATENATE("(",$E$8," * ","(",$E$9," - ",$D$10,")"," / ",100," - ",$D$11,")"," / ",$E$8," * ",100," - ","(",$E$8," * ","(",$D$9," - ",$D$10,")"," / ",100," - ",$D$11,")"," / ",$E$8," * ",100) -> (458 * (32,5327510917031 - 5,94) / 100 - 102,8) / 458 * 100 - (458 * (32,4257425742574 - 5,94) / 100 - 102,8) / 458 * 100 | G9: =вычислить.g16.9 -> 0.11
C10: 3. Уровень условно-переменных расходов на реализацию товаров (Упер), % | D10: ='Таблица 12'!D10 -> 5.94 | E10: ='Таблица 12'!E10 -> 5.41 | F10: =CONCATENATE("(",$E$8," * ","(",$E$9," - ",$E$10,")"," / ",100," - ",$D$11,")"," / ",$E$8," * ",100," - ","(",$E$8," * ","(",$E$9," - ",$D$10,")"," / ",100," - ",$D$11,")"," / ",$E$8," * ",100) -> (458 * (32,5327510917031 - 5,41) / 100 - 102,8) / 458 * 100 - (458 * (32,5327510917031 - 5,94) / 100 - 102,8) / 458 * 100 | G10: =вычислить.g16.10 -> 0.53
C11: 4. Сумма условно-постоянных расходов на реализацию товаров (Рп), млн.руб. | D11: ='Таблица 12'!D9 -> 102.80 | E11: ='Таблица 12'!E9 -> 105.20 | F11: =CONCATENATE("(",$E$8," * ","(",$E$9," - ",$E$10,")"," / ",100," - ",$E$11,")"," / ",$E$8," * ",100," - ","(",$E$8," * ","(",$E$9," - ",$E$10,")"," / ",100," - ",$D$11,")"," / ",$E$8," * ",100) -> (458 * (32,5327510917031 - 5,41) / 100 - 105,2) / 458 * 100 - (458 * (32,5327510917031 - 5,41) / 100 - 102,8) / 458 * 100 | G11: =вычислить.g16.11 -> -0.52
C12: 5. Рентабельность продаж (Рпр), % | D12: ='Таблица 14'!D13 -> 1.04 | E12: ='Таблица 14'!E13 -> 4.15 | F12: =CONCATENATE("(",G8,")"," + ","(",G9,")"," + ","(",G10,")"," + ","(",G11,")") -> (3,00012970729387) + (0,107008517445699) + (0,530000000000004) + (-0,52401746724891) | G12: =вычислить.G16.12 -> 3.11

Sheet Таблица 17
G3: Таблица 17
C4: Информация для расчета планируемой рентабельности продаж УП «Аристо» по методу скользящей средней
C6: Период (полугодие) | D6: Выручка от реализации, млн.руб. | E6: Прибыль от реализации, млн.руб. | F6: Рентабельность продаж, % | G6: Выровненные показатели рентабельности продаж (Рпр), %
C7: 1-е полугодие прошлого года | D7: 204.58 | E7: 0.58 | F7: =E7/D7*100 -> 0.28 | G7: х
C8: 2-е полугодие прошлого года | D8: ='Таблица 12'!D8-'Таблица 17'!D7 -> 199.42 | E8: ='Таблица 12'!D12-'Таблица 17'!E7 -> 3.62 | F8: =E8/D8*100 -> 1.82 | G8: =(F8+F7)/2 -> 1.05
C9: 1-е полугодие отчетного года | D9: 209.20 | E9: 3.53 | F9: =E9/D9*100 -> 1.69 | G9: =(F9+F8)/2 -> 1.75
C10: 2-е полугодие отчетного года | D10: ='Таблица 12'!E8-'Таблица 17'!D9 -> 248.80 | E10: ='Таблица 12'!E12-'Таблица 17'!E9 -> 15.49 | F10: =E10/D10*100 -> 6.23 | G10: =(F10+F9)/2 -> 3.96
C12: Количество рассчитанных значений выровненного показателя рентабельности продаж | H12: =COUNT(G8,G9,G10) -> 3
C13: Ожидаемая рентабельность продаж (Рпр) УП «Аристо» на следующий период, %
C14: Прирост Рпр = | D14: =CONCATENATE("(",G10," - ",G8,")"," / ","(",H12," - ",1,")") -> (3,95707449293895 - 1,04998771537664) / (3 - 1) | G14: = | H14: =вычислить.h17.16 -> 1.45
C15: Рпр.след.период = | D15: =CONCATENATE(G10," + ",H14) -> 3,95707449293895 + 1,45354338878116 | G15: = | H15: =вычислить.h17.21 -> 5.41

Sheet Таблица 18
K3: Таблица 18
C4: Информация для расчета планируемой суммы прибыли от реализации продукции и товаров по методу экстремумов
K5: (млн.руб.)
C6: Период | F6: Прибыль от реализации продукции и товаров | I6: Условные обозначения
C7: 1-е полугодие прошлого года | F7: ='Таблица 17'!E7 -> 0.58 | I7: Y1
C8: 2-е полугодие прошлого года | F8: ='Таблица 17'!E8 -> 3.62 | I8: Y2
C9: 1-е полугодие отчетного года | F9: ='Таблица 17'!E9 -> 3.53 | I9: Y3
C10: 2-е полугодие отчетного года | F10: ='Таблица 17'!E10 -> 15.49 | I10: Y4
C13: Y1 = a + b, | E13: =F7 -> 0.58 | F13: = a + b,
C14: Yn = an + b | E14: =F10 -> 15.49 | F14: = 4a + b
C16: Для упрощения расчетов умножим первое уравнение на | I16: -4 | J16: , после чего
C17: система примет вид:
D19: =E13*I16 -> -2.32 | E19: = | F19: =I16 -> -4 | G19: а | H19: =I16 -> -4 | I19: b
D20: =E14 -> 15.49 | E20: = | F20: =4 -> 4 | G20: а + | H20: =1 -> 1 | I20: b
C22: Затем, прибавив к первому уравнению второе, получим:
D23: =D20+D19 -> 13.17 | E23: = | F23: =F20+F19 -> 0 | G23: =H19+H20 -> -3 | H23: b
D24: b | E24: = | F24: =D23/G23 -> -4.4
D25: a | E25: = | F25: =E13-F24 -> 5.0
C26: Ожидаемая прибыль от реализации (Пр) УП «Аристо» на следующий период
C27: Пр.1-го полугодия след.период:
C28: =F25 -> 5.0 | D28: х | E28: 5 | F28: + | G28: =F24 -> -4.4 | H28: = | I28: =C28*E28+G28 -> 20.5 | J28: млн.руб.
C29: Пр.2-го полугодия след.период:
C30: =F25 -> 5.0 | D30: х | E30: 6 | F30: + | G30: =F24 -> -4.4 | H30: = | I30: =C30*E30+G30 -> 25.4 | J30: млн.руб.
C31: Пр.след.период:
C32: =I28 -> 20.5 | D32: + | E32: =I30 -> 25.4 | F32: = | G32: =C32+E32 -> 45.9 | H32: млн.руб.
C33: Расчет точки безубыточности (млн.руб.):
C34: Вбезубыт = Pп / (УВП - Упер) = | F34: =CONCATENATE('Таблица 16'!E11," / ","(",'Таблица 16'!E9," / ",100," - ",'Таблица 16'!E10," / ",100,")") -> 105,2 / (32,5327510917031 / 100 - 5,41 / 100) | K34: =вычислить.К18.41 -> 387.9
C35: Расчет запаса прочности, %:
C36: ЗФБ = (Вфакт - Вбезубыт) / Вфакт х 100 = | G36: =CONCATENATE("(",'Таблица 16'!E8," - ",K34,")"," / ",'Таблица 16'!E8," * ",100) -> (458 - 387,866259010064) / 458 * 100 | K36: =вычислить.К18.43 -> 15.31
C38: Сумма выручки от реализации, которая обеспечивает организации необходимую (прогнозную) сумму прибыли от реализации товаров:
C39: Впрогн.след.год = (Рп + НП) / (УВП - Упер), млн.руб.:
C40: =CONCATENATE("(",'Таблица 16'!$E$11," + ","(",'Таблица 16'!$E$8," * ",'Таблица 17'!$H$15," / ",100,")",")"," / ","(",'Таблица 16'!$E$9," / ",100," - ",'Таблица 16'!$E$10," / ",100,")") -> (105,2 + (458 * 5,41061788172011 / 100)) / (32,5327510917031 / 100 - 5,41 / 100) | K40: =вычислить.к18.40 -> 479.23

Sheet Таблица 19
G3: Таблица 19
C4: Планирование рентабельности продаж УП «Аристо» с использованием расчетно-аналитического метода
C6: Период (год) | D6: Рентабельность продаж | F6: Годовой уровень прибыли от реализации к уровню прибыли от реализации за 6 месяцев
D7: за год | E7: за полугодие (6 месяцев)
F8: расчет | G8: итог
C9: Предшествующий | D9: 0.99 | E9: 1.69 | F9: =CONCATENATE(D9," * ",100," / ",E9) -> 0,99 * 100 / 1,69 | G9: =вычислить.G19.9 -> 58.58
C10: Прошлый | D10: ='Таблица 14'!D13 -> 1.04 | E10: ='Таблица 17'!F8 -> 1.82 | F10: =CONCATENATE(D10," * ",100," / ",E10) -> 1,04019801980198 * 100 / 1,81646775649383 | G10: =вычислить.g19.10 -> 57.26
C11: Отчетный | D11: ='Таблица 14'!E13 -> 4.15 | E11: ='Таблица 17'!F10 -> 6.23 | F11: - | G11: -
C13: Ожидаемая рентабельность продаж (Рпр) УП «Аристо» на следующий период:
C14: Рпр.след.период = ( | D14: =G9 -> 58.58 | E14: + | F14: =G10 -> 57.26 | G14: ) / 2 х
D15: =E11 -> 6.23 | E15: / 100 = | F15: =(D14+F14)/2*D15/100 -> 3.61
